Cogmind - Beta 15 @@@ ROGUE MODE // 2025.10.21 @ 05:04:40 // Winter2022/Polymind Player: NQH Result: Destroyed by G-47 Trooper with Particle Gun Performance ------------- Evolutions (1) 500 Regions Visited (4) 800 Robots Destroyed (4) 20 Value Destroyed (64) 64 Prototype IDs (0) 0 Alien Tech Used (0) 0 Bonus (1740) 1740 TOTAL SCORE: 2774 Bonus ------- Polymind Skill 1540 Pacifist 200 Cogmind --------- Core Integrity 0/400 Matter 100/100 Energy 50/50 System Corruption 5% Temperature Cool (9) Movement Core (50) Location -9/Exiles Parts ------- > --- POWER (0) -------- (None) > --- PROPULSION (1) --- (None) > --- UTILITY (0) ------ (None) > --- WEAPON (1) ------- Assembled Maul > --- INVENTORY (1) ---- (None) Peak State ------------ > --- POWER ------------ Light Nuclear Core > --- PROPULSION ------- Aluminum Leg Aluminum Leg > --- UTILITY ---------- Improved Heat Sink > --- WEAPON ----------- Particle Gun > --- INVENTORY -------- (None) [Rating: 10] Favorites ----------- Power Light Nuclear Core Engine Light Ion Engine Power Core Light Nuclear Core Propulsion Aluminum Leg Treads Light Treads Leg Aluminum Leg Wheel Compact Wheel Hover Unit Hover Unit Flight Unit Flight Unit Utility Improved Heat Sink Device Improved Heat Sink Storage Medium Storage Unit Processor Transport Network Coupler Hackware Hacking Suite Weapon Particle Gun Energy Gun Particle Gun Ballistic Gun Light Assault Rifle Impact Weapon Assembled Maul Special Melee Weapon Datajack Build | -11 -10 -9 -9 -9 ------- Run | Yrd Mat Mat Min Exi Slots Evolved . | . . . . . Power . | . . . . . Propulsion . | . . . . . Utility . | . . . . . Weapon . | . . . . . Parts Attached . | . . . . . Power . | . . . . . Engine . | . . . . . Core . | . . . . . Reactor . | . . . . . Propulsion . | . . . . . Treads . | . . . . . Leg . | . . . . . Wheel . | . . . . . Hover . | . . . . . Flight . | . . . . . Utility . | . . . . . Device . | . . . . . Storage . | . . . . . Processor . | . . . . . Hackware . | . . . . . Protection . | . . . . . Artifact . | . . . . . Weapon . | . . . . . Energy Gun . | . . . . . Energy Cannon . | . . . . . Ballistic Gun . | . . . . . Ballistic Cannon . | . . . . . Launcher . | . . . . . Special Weapon . | . . . . . Impact Weapon . | . . . . . Slashing Weapon . | . . . . . Piercing Weapon . | . . . . . Special Melee Weapon . | . . . . . Unidentified Prototypes . | . . . . . Parts Lost 2 | . . . . 2 Power 1 | . . . . 1 Propulsion 1 | . . . . 1 Utility . | . . . . . Weapon . | . . . . . Highest Loss Streak 2 | . . . . 2 To Critical Strikes 1 | . . . . 1 Average Backups . | . . . . . Power . | . . . . . Propulsion . | . . . . . Utility . | . . . . . Weapon . | . . . . . Tool/Special . | . . . . . Unused Backups 10 | . . 10 . . Power . | . . . . . Propulsion 1 | . . 1 . . Utility 3 | . . 3 . . Weapon 6 | . . 6 . . Tool/Special . | . . . . . Average Slot Usage (%) 76 | . 54 83 80 76 Engine 5 | . 10 7 . . Core 11 | . . 9 20 16 Treads 2 | . . 5 . . Leg 24 | . 10 19 40 36 Wheel 2 | . . 5 . . Hover 1 | . 10 . . . Flight 2 | . . 4 . . Device 6 | . 5 11 . . Storage 2 | . . 5 . . Processor 1 | . . 2 . . Energy Gun 12 | . 5 9 20 18 Ballistic Gun 1 | . . 2 . . Peak Build Rating 10 | . 7 10 7 7 Average Rating 5 | . 3 6 7 6 On Entrance 3 | . . 4 7 7 Naked Turns 91 | . 46 45 . . Heaviest Build 15 | . 7 15 8 8 Greatest Support 46 | 3 20 46 20 20 Greatest Overweight (x) . | . . . . . Average Overweight (x) . | . . . . . Largest Inventory Capacity 6 | . 1 6 1 1 Average Capacity 1 | . . 2 1 1 Most Carried 6 | . . 6 . . Average Carried . | . . . . . Final Capacity 1 | . . 1 1 1 Final Carried . | . . . . . Class Distribution -------------------- 59% | Grunt 14% | Cogmind 8% | Hauler 6% | Recycler 4% | Operator 3% | Swarmer Dominant Class ---------------- Cogmind | -10/Materials Grunt | -9/Materials Grunt | -9/Mines Grunt | -9/Exiles Resources | -11 -10 -9 -9 -9 ----------- Run | Yrd Mat Mat Min Exi Matter Collected . | . . . . . Remotely . | . . . . . Salvage Created 16 | . . . . 16 Parts 8 | . . 5 3 . Haulers Intercepted . | . . . . . Recyclers Shooed . | . . . . . Parts Field Recycled . | . . . . . Retrieved Matter . | . . . . . Parts Self-Destructed . | . . . . . Prevented . | . . . . . Kills | -11 -10 -9 -9 -9 ------- Run | Yrd Mat Mat Min Exi Combat Hostiles Destroyed 6 | . . 3 1 2 Melee 4 | . . 2 . 2 Guns 2 | . . 1 1 . Classes Destroyed 3 | . . 2 . 1 Swarmer 3 | . . 2 1 . Grunt 1 | . . 1 . . Assembled 2 | . . . . 2 Best Kill Streak 2 | . . 1 1 2 Combat Bots Only 2 | . . 1 1 2 Max Kills in Single Turn 1 | . . 1 1 1 Gunslinging . | . . . . . Exploded . | . . . . . Melee 1 | . . 1 . 1 Uniques/NPCs Destroyed . | . . . . . Combat | -11 -10 -9 -9 -9 -------- Run | Yrd Mat Mat Min Exi Hostile Shots Fired 91 | . 5 53 . 33 Missed 33 | . 3 17 . 13 Hits 58 | . 2 36 . 20 Melee 2 | . . . . 2 Projectile 56 | . 2 36 . 18 Critical Strikes 3 | . . 1 . 2 Damage Taken 757 | . 14 370 32 341 Core 411 | . . 167 10 234 Absorbed by Shields . | . . . . . Core Remaining (%) 100 | 100 100 . . . Volleys Fired 15 | . 2 8 5 . Largest 1 | . 1 1 1 . Hottest 65 | . 40 65 65 . Shots Fired 17 | . 2 8 6 1 Gun 17 | . 2 8 6 1 Cannon . | . . . . . Launcher . | . . . . . Special . | . . . . . Kinetic . | . . . . . Thermal 17 | . 2 8 6 1 Explosive . | . . . . . Electromagnetic . | . . . . . Robot Hit Streak 9 | . . 4 9 1 Robot Miss Streak 6 | . 2 6 1 . Penetration Max . | . . . . . Secondary Targets . | . . . . . Shots Hit Robots 15 | . 1 4 5 5 Core Hits 8 | . . 4 2 2 Critical Kills . | . . . . . Critical Parts Destroyed . | . . . . . Critical Strikes . | . . . . . Melee Attacks 6 | . 1 . . 5 Impact 5 | . . . . 5 Slashing . | . . . . . Piercing . | . . . . . Sneak Attacks 1 | . 1 . . . Combat Hostiles 1 | . 1 . . . Follow-up Attacks . | . . . . . Damage Inflicted 354 | . . 148 74 132 Guns 172 | . . 83 74 15 Cannons . | . . . . . Explosions . | . . . . . Melee 117 | . . . . 117 Ramming 65 | . . 65 . . Kinetic . | . . . . . Thermal 172 | . . 83 74 15 Explosive . | . . . . . Electromagnetic . | . . . . . Impact 117 | . . . . 117 Slashing . | . . . . . Piercing . | . . . . . Highest Corruption 5 | . . 2 2 5 Average Corruption 2 | . . 2 2 2 Corruption Purged . | . . . . . Corruption Blocked . | . . . . . Effects 5 | . . 1 2 2 Message Errors 2 | . . . 1 1 Heat Flow Errors 1 | . . 1 . . Misfires 2 | . . . 1 1 Overload Shots . | . . . . . Overflow Damage . | . . . . . Projectiles . | . . . . . Explosions . | . . . . . Melee . | . . . . . Knockbacks . | . . . . . Impact . | . . . . . Kinetic . | . . . . . Secondary . | . . . . . Self-Inflicted Damage 20 | . . 20 . . Shots . | . . . . . Rammed 20 | . . 20 . . Targets Rammed 21 | . . 21 . . Kicked . | . . . . . Crushed 1 | . . 1 . . Highest Temperature 270 | . . 270 74 26 Average Temperature 87 | . . 127 30 15 Received Heat Transfer 147 | . . 123 6 18 Siege Activations . | . . . . . Martial Activations . | . . . . . Shielding Activations . | . . . . . Robots Disrupted . | . . . . . Combat Hostiles . | . . . . . Robots Corrupted . | . . . . . Combat Hostiles . | . . . . . Parts Fried . | . . . . . Impact Corruptions . | . . . . . Robots Melted . | . . . . . Combat Hostiles . | . . . . . Parts Melted . | . . . . . Heat Transferred 407 | . . 185 185 37 Parts Sabotaged . | . . . . . Parts Stolen . | . . . . . Parts Stripped . | . . . . . Power Chain Reactions . | . . . . . Alert | -11 -10 -9 -9 -9 ------- Run | Yrd Mat Mat Min Exi Maximum Alert Level . | . . . . . Low Security (%) 100 | 100 100 100 100 . Level 1 . | . . . . . Level 2 . | . . . . . Level 3 . | . . . . . Level 4 . | . . . . . Level 5 . | . . . . . High Security . | . . . . . Max Security . | . . . . . Peak Influence 25 | . . 25 20 . Initial . | . . . . . Average 3 | . . 4 5 . Influence Increases 95 | . . 75 20 . Destroy 0b10 Robot/C 80 | . . 60 20 . Lose Combat Pursuer 15 | . . 15 . . Influence Decreases 95 | . . 75 20 . Time Decay 90 | . . 70 20 . Miscellaneous 5 | . . 5 . . Squads Dispatched 1 | . 1 . . . Investigation . | . . . . . Extermination . | . . . . . Reinforcement 1 | . 1 . . . Assault . | . . . . . Garrison . | . . . . . Intercept . | . . . . . Searches Triggered . | . . . . . Construction Impeded . | . . . . . Haulers Reinforced . | . . . . . Active Scanning Responses . | . . . . . Cargo Convoy Interrupts . | . . . . . Stealth | -11 -10 -9 -9 -9 --------- Run | Yrd Mat Mat Min Exi Distress Signals 1 | . . 1 . . Communications Jammed . | . . . . . Distress Signals . | . . . . . Times Spotted 48 | . 13 24 2 9 Peak Tracking Total 9 | . 7 5 2 9 Tactical Retreats 1 | . . 1 . . Traps | -11 -10 -9 -9 -9 ------- Run | Yrd Mat Mat Min Exi Traps Triggered . | . . . . . Indirectly . | . . . . . Trap Hack Attempts . | . . . . . Triggered . | . . . . . Disarmed . | . . . . . Reprogrammed . | . . . . . Reused . | . . . . . Traps Extracted . | . . . . . Installed . | . . . . . Triggered . | . . . . . Machines | -11 -10 -9 -9 -9 ---------- Run | Yrd Mat Mat Min Exi Machines Disabled . | . . . . . Max in Single Turn . | . . . . . Machines Repaired . | . . . . . Machines Dismantled . | . . . . . Machines Sabotaged . | . . . . . Overloaded Fab Kills . | . . . . . Hacking | -11 -10 -9 -9 -9 --------- Run | Yrd Mat Mat Min Exi Machines Accessed 1 | . . . . 1 Terminals . | . . . . . Fabricators . | . . . . . Repair Stations . | . . . . . Recycling Units . | . . . . . Scanalyzers . | . . . . . Garrison Access . | . . . . . Total Hacks 9 | . . . . 9 Successful 9 | . . . . 9 Failed . | . . . . . Catastrophic . | . . . . . Database Lockouts . | . . . . . Manual . | . . . . . Terminals . | . . . . . Fabricators . | . . . . . Repair Stations . | . . . . . Recycling Units . | . . . . . Scanalyzers . | . . . . . Garrison Access . | . . . . . Terminal Hacks 9 | . . . . 9 Record 9 | . . . . 9 Fabricator Hacks . | . . . . . Repair Station Hacks . | . . . . . Recycling Unit Hacks . | . . . . . Scanalyzer . | . . . . . Garrison Access Hacks . | . . . . . Unauthorized Hacks . | . . . . . Terminals . | . . . . . Fabricators . | . . . . . Repair Stations . | . . . . . Recycling Units . | . . . . . Scanalyzers . | . . . . . Garrison Access . | . . . . . Data Cores Recovered . | . . . . . Used . | . . . . . Hacking Detections . | . . . . . Full Trace Events . | . . . . . Feedback Events . | . . . . . Feedback Blocked . | . . . . . Robot Schematics Acquired . | . . . . . Robots Built . | . . . . . Authchips . | . . . . . Time . | . . . . . Total Robot Build Rating . | . . . . . Part Schematics Acquired . | . . . . . Parts Built . | . . . . . Authchips . | . . . . . Time . | . . . . . Total Part Build Rating . | . . . . . Parts Repaired . | . . . . . Time . | . . . . . Parts Recycled . | . . . . . Recycled Matter . | . . . . . Retrieved Matter . | . . . . . Retrieved Components . | . . . . . Parts Scanalyzed . | . . . . . Part Schematics Acquired . | . . . . . Parts Damaged . | . . . . . Bothacking | -11 -10 -9 -9 -9 ------------ Run | Yrd Mat Mat Min Exi Used RIF Installer . | . . . . . Robots Hacked 7 | . 3 4 . . Non-combat 3 | . 1 2 . . Combat 4 | . 2 2 . . Robot Hacks Applied 7 | . 3 4 . . locate_stockpiles 1 | . . 1 . . find_recycling 1 | . . 1 . . find_terminals 1 | . 1 . . . find_shortcuts 4 | . 2 2 . . Relay Couplers Released . | . . . . . Fabnet Peak Effective % . | . . . . . Robots Rewired . | . . . . . Allies Hacked . | . . . . . Hacks Repelled . | . . . . . Allies | -11 -10 -9 -9 -9 -------- Run | Yrd Mat Mat Min Exi Total Allies . | . . . . . Largest Group . | . . . . . Highest-Rated Group . | . . . . . Highest-Rated Ally . | . . . . . Total Orders . | . . . . . Ally Attacks . | . . . . . Total Damage . | . . . . . Kills . | . . . . . Allies Corrupted . | . . . . . Allies Melted . | . . . . . Intel | -11 -10 -9 -9 -9 ------- Run | Yrd Mat Mat Min Exi Active Infowar (turns) 52 | . . 52 . . T.N.C. 52 | . . 52 . . Robot Analysis Total 7 | . 3 3 . 1 Derelict Logs Recovered . | . . . . . Drone Launches . | . . . . . Drone Recoveries . | . . . . . Exploration | -11 -10 -9 -9 -9 ------------- Run | Yrd Mat Mat Min Exi Turns Passed 628 | 11 98 302 89 128 Spaces Moved 573 | 21 146 253 60 93 Core 158 | 21 88 42 . 7 Treads 20 | . . 20 . . Legs 269 | . 18 106 60 85 Wheels 34 | . . 34 . . Hover 39 | . 38 . . 1 Flight 53 | . 2 51 . . Fastest Speed 37 | 50 37 37 120 50 Average Speed 88 | 50 60 92 120 114 Slowest Speed 160 | 50 120 160 120 120 Overloaded Moves . | . . . . . Propulsion Burnouts . | . . . . . Robots Hopped . | . . . . . Potential Cave-ins . | . . . . . Cave-ins Triggered . | . . . . . Exploration Rate (%) 23 | 3 30 29 21 35 Regions Visited 4 Branch Regions 2 Pre-discovered Areas . | . . . . . Known Exits Taken . | . . . . . Unknown Exits Taken 4 | 1 1 1 1 . Scrap Searched 1 | . . . 1 . Spaces Dug . | . . . . . Terrain Destroyed . | . . . . . Melee . | . . . . . Projectile . | . . . . . AOE . | . . . . . Terrain Rammed . | . . . . . Walls Destroyed . | . . . . . Machines Disabled . | . . . . . Actions | -11 -10 -9 -9 -9 --------- Run | Yrd Mat Mat Min Exi Total 662 | 20 153 311 72 106 Wait 39 | . 4 19 8 8 Move 569 | 20 145 252 59 93 Hop . | . . . . . Pick Up 4 | . . 4 . . Fast Attach . | . . . . . Attach . | . . . . . Detach . | . . . . . Swap . | . . . . . Drop 6 | . . 6 . . Fire 15 | . 2 8 5 . Melee 6 | . 1 . . 5 Ram 12 | . . 12 . . Kick . | . . . . . Crush 9 | . . 9 . . Escape Stasis . | . . . . . Rewire 2 | . 1 1 . . Trap . | . . . . . Miscellaneous . | . . . . . Route ------- -11/Scrapyard -10/Materials -9/Materials -9/Mines -9/Exiles History --------- Turn | Location | Event 4 | -11/Scrapyard | Discovered new exit (range 15) 12 | -11/Scrapyard | Entered Materials 106 | -10/Materials | Discovered new exit (range 3) 110 | -10/Materials | Entered another Materials area 236 | -9/Materials | Met 8R-AWN 394 | -9/Materials | Discovered new exit (range 15) 412 | -9/Materials | Entered Mines 413 | -9/Mines | Followed 8R-AWN into the Mines 428 | -9/Mines | Met a Derelict bent on vengeance 495 | -9/Mines | Discovered new exit (range 5) 501 | -9/Mines | Entered Exiles 531 | -9/Exiles | Welcomed by 8R-AWN 551 | -9/Exiles | Met EX-HEX 588 | -9/Exiles | Met EX-BIN 596 | -9/Exiles | Attacked by the Exiles 612 | -9/Exiles | Core integrity fell below 50% 624 | -9/Exiles | Core integrity fell below 20% 629 | -9/Exiles | Destroyed by G-47 Trooper with Particle Gun Last Messages --------------- 00611_ Released control of G-47 Trooper. 00611_ Took control of as-88665. 00611_ Extracted analysis data for Assembled. 00612_ G-47 Trooper reactivates. 00613_ Asb. Hover Unit destroyed. 00613_ System corrupted by crushing effect (+3). 00613_ Knocked back. 00615_ as-52837 destroyed. 00615_ as-70869 destroyed. 00617_ Machine disabled. 00619_ Acquired 10 Protomatter. 00619_ as-43335 destroyed. 00621_ W2JJYHYQH7CYA|%>WHQ26G2ER>EQ0PHF 7ZQ 00622_ Acquired 15 Protomatter. 00625_ as-16673 destroyed. 00627_ Machine disabled. 00627_ HV Slug penetrates Wall. 00627_ HV Slug penetrates Machine. 00627_ Penetrated by HV Slug. 00627_ HV Slug penetrates Machine. Map ----- +----------------------------------------------------+ | ?????????????????????????????????????????????????? | | ?????????????????????????????????????????????????? | | ?????????????????????????????????????????????????? | | ????????????????????????? ?????????????????????? | | ??????????????????????# ?????????????????????? | | ??????????????????????# ?????????????????????? | | ??????????????????????# ?????""??????????????? | | ??????????????????????# #??"""""?????????????? | | ??????????????????????# #??"""""""???????????? | | ?????????????????????## ###"" """"???????????? | | ?????????????????????#" """"???????????? | | ?????????????????????#" """#??????????? | | ?????????????????????#" """#??????????? | | ?????????????????????#" """#??????????? | | ?????????????????????#" """#??????????? | | ?????????????????????#" """#??????????? | | ??????????????????????# """""?????????? | | ??????????????????????# """#??????????? | | ??????????????????????#" "X" """""?????????? | | ??????????????????????#" """ #??????????? | | ??????????????????????#" """""""""#??????????? | | ?????????????????????##" %g##########???????????? | | ????????????????????## #????????????????????? | | ??????????????????### " #????????????????????? | | ?????????????????""""" ##???????????????????? | | ???????????????""" " "" a% ##???##########?????? | | ???????????????""" " a #####"""""""""##???? | | ?????????????" " a " """ """"##??? | | ??????????? "" " #??? | | ??????????? g " """#??? | | ??????????? " "#??? | | ???????????? " "##?? | | ???????????? ""### | | ???????????? """""" """# | | ????????????? ######"" "# | | ????????????? ""#?????#####""" # | | ??????????????"""#??????????##""" | | ?????????????????????????????#"""" | | ?????????????????????????????#"" | | ?????????????????????????????"""" | | ????????????????????????????? | | ??????????????????????????? | | ??????????????????????????? | | ?????????????????????????? | | ?????????????????????????? " | | ?????????????????????????? "" """ "" | | ??????????????????????????#?""" " " ""#" "# | | ??????????????????????????????##""" """##"""""""## | | ?????????????????????????????????#"""???#########? | | ???????????????????????????????????#?????????????? | +----------------------------------------------------+ Best States ------------- Heat Dissipation 40 Energy Generation 20 Energy Capacity 200 Matter Stores 100 Matter Capacity 100 Sight Range 16 Terrain Scan Density 10 Additional Mass Support 6 Evasion (%) 62 Recoil Reduction 2 Offensive Hacking 10 Item Schematics ----------------- None Robot Schematics ------------------ None Fabricated ------------ Nothing Repaired ---------- Nothing Alien Tech Used ----------------- None Achievements -------------- None Challenges ------------ None Polymind | -11 -10 -9 -9 -9 ---------- Run | Yrd Mat Mat Min Exi Hosts 8 | . 3 4 . 1 Combat Hostiles 5 | . 2 2 . 1 Allies . | . . . . . Unique Host Classes 6 | . 3 2 . 1 Average Host Suspicion 64 | . 55 91 74 7 Unsuspicious Activity 102 | . 9 15 10 68 Returns to Shadow . | . . . . . Fuzzy Dispatches . | . . . . . Protomatter Created 110 | . . 67 18 25 Used 112 | . 26 70 . 16 Decayed 26 | . . 26 . . Highest Spend 30 | . 15 30 . 16 Top 5 Hosts by Kills: G-47 Trooper (-9/Materials: 2) as-88665 (-9/Exiles: 2) A-02 Transporter (-9/Materials: 1) Game ------ Seed GravmagChainSegregator Manual? 0 Play Time 00:08:15 Cumulative 36.6 hours Start 2025.10.21 @ 04:57:53 End 2025.10.21 @ 05:04:40 Sessions 1 Manual Loads 0 Difficulty Rogue Special Mode Winter2022/Polymind Game No. 143 Rogue 143 Adventurer 0 Explorer 0 Win Type - Total 0 Types 0/0/0/0/0/0/0/0/0/0 Lore% 12 Gallery% 32 Achievement% 31 Wizard Run 0 Options --------- Layout 1 ASCII 0 Keyboard 1 Movement Vi Keybinds 0 Fullscreen 1 Font 16/SmallcapsGlow Map View 55x38 Zoom Use 0% Tactical HUD 1 Map Filters NONE Filters NONE Steam 1 RUN: baeb5b40-e263-4095-8eea-d77253bbad50